[Event "360 One Wealth GP-4 2024"]
[Site "Mumbai"]
[Date "2024.03.14"]
[Round "4.6"]
[White "Gangan Vihang Vishwanath"]
[Black "Mishra Sanjeev"]
[Result "0-1"]
[ECO "B34"]
[WhiteElo "1454"]
[BlackElo "1833"]
[Annotator "NA RC"]
[PlyCount "118"]
[EventDate "2024.03.10"]
[EventCountry "IND"]
[SourceTitle "playchess.com"]
[Source "ChessBase"]
[SourceQuality "1"]
[TimeControl "5400+30"]

1. e4 {[%emt 0:00:02]} c5 {[%emt 0:01:04]} 2. Nf3 {[%emt 0:00:08]} Nc6 {[%emt 0:00:02]} 3. d4 {[%emt 0:00:05]} cxd4 {[%emt 0:00:02]} 4. Nxd4 {[%emt 0:00:04]} g6 {[%emt 0:00:08]} 5. Nc3 {[%emt 0:00:27]} Bg7 {[%emt 0:00:01]} 6. Be3 {[%emt 0:00:12]} Nf6 {[%emt 0:00:06]} 7. f3 {[%emt 0:01:39]} O-O {[%emt 0:04:57]} 8. Qd2 {[%emt 0:00:26]} d5 {[%emt 0:00:05]} 9. exd5 {[%emt 0:05:43]} Nxd5 {[%emt 0:00:03]} 10. Nxd5 {[%emt 0:00:11]} Qxd5 {[%emt 0:00:04]} 11. Nxc6 {[%emt 0:00:12]} Qxc6 {[%emt 0:02:10]} 12. c3 {[%emt 0:06:14]} Bf5 {[%emt 0:01:00] B34: Sicilian: Accelerated Dragon with 5 Nc3: sidelines.} 13. Rd1 {[%emt 0:05:09]} Be6 {[%emt 0:00:49]} 14. Ra1 {[%emt 0:07:15]} Rfd8 {[%emt 0:00:34]} 15. Qc1 {[%emt 0:01:21]} Rd7 {[%emt 0:02:20]} 16. Be2 {[%emt 0:00:27]} Bc4 {[%emt 0:00:01]} 17. Bxc4 {[%emt 0:01:26]} Qxc4 {[%emt 0:00:02]} 18. Kf2 {[%emt 0:01:22]} Qh4+ {[%emt 0:04:32]} 19. g3 {[%emt 0:08:48]} Qh3 {[%emt 0:00:46]} 20. Qf1 {[%emt 0:00:17]} Qe6 {[%emt 0:00:12]} 21. Qe2 {[%emt 0:05:18]} Rad8 {[%emt 0:00:30]} 22. Rhd1 {[%emt 0:06:24]} a6 {[%emt 0:01:57]} 23. Rxd7 {[%emt 0:02:24]} Qxd7 {[%emt 0:02:44]} 24. Bb6 {[%emt 0:05:21]} Rc8 {[%emt 0:00:01]} 25. Rd1 {[%emt 0:01:31]} Qc6 {[%emt 0:01:35]} 26. Rd8+ {[%emt 0:06:57]} Rxd8 {[%emt 0:00:02]} 27. Bxd8 {[%emt 0:00:02]} e5 {[%emt 0:00:18]} 28. Bg5 {[%emt 0:04:01]} f5 {[%emt 0:01:13]} 29. Be3 {[%emt 0:03:10]} e4 {[%emt 0:00:53]} 30. fxe4 {[%emt 0:00:53]} Qxe4 {[%emt 0:00:01]} 31. Bf4 {[%emt 0:02:04]} Qc6 {[%emt 0:02:56]} 32. Qc2 {[%emt 0:03:00]} Bd4+ {[%emt 0:01:06]} 33. Be3 {[%emt 0:02:26]} Bxe3+ {[%emt 0:00:02]} 34. Kxe3 {[%emt 0:00:14]} Qe6+ {[%emt 0:00:01]} 35. Kd4 {[%emt 0:02:32]} Qxa2 {[%emt 0:00:59]} 36. c4 {[%emt 0:00:22]} Qa5 {[%emt 0:00:14]} 37. c5 {[%emt 0:01:58]} Qd8+ {[%emt 0:03:23]} 38. Kc3 {[%emt 0:00:44] [#]} (38. Kc4 $17 {war einen Versuch wert.}) 38... Qd5 $1 {[%emt 0:00:34]} 39. Qb3 {[%emt 0:02:46]} Qxb3+ {[%emt 0:00:26]} 40. Kxb3 {[%emt 0:00:04]} Kf7 {[%emt 0:00:19]} 41. Kc4 {[%emt 0:00:08]} Ke6 {[%emt 0:00:01]} 42. Kd4 {[%emt 0:00:16]} a5 {[%emt 0:00:22]} 43. b3 {[%emt 0:02:15]} g5 {[%emt 0:00:08]} 44. h3 {[%emt 0:01:06]} f4 {[%emt 0:01:26]} 45. gxf4 {[%emt 0:00:46]} gxf4 {[%emt 0:00:01]} 46. Ke4 {[%emt 0:02:24]} f3 {[%emt 0:00:02]} 47. Kxf3 {[%emt 0:00:14]} Kd5 {[%emt 0:00:01]} 48. Ke3 {[%emt 0:00:56]} Kxc5 {[%emt 0:00:01]} 49. Kd3 {[%emt 0:00:11]} Kb4 {[%emt 0:00:05]} 50. Kc2 {[%emt 0:00:06]} Ka3 {[%emt 0:00:07]} 51. Kc3 {[%emt 0:01:21]} b5 {[%emt 0:00:02]} 52. h4 {[%emt 0:01:09]} h5 {[%emt 0:00:01]} 53. Kc2 {[%emt 0:00:08]} b4 {[%emt 0:00:04]} 54. Kb1 {[%emt 0:00:22]} Kxb3 {[%emt 0:00:01]} 55. Ka1 {[%emt 0:00:08]} Kc2 {[%emt 0:00:03]} 56. Ka2 {[%emt 0:00:20]} b3+ {[%emt 0:00:01]} 57. Ka3 {[%emt 0:00:22]} b2 {[%emt 0:00:01]} 58. Ka2 {[%emt 0:00:06]} b1=Q+ {[%emt 0:00:08]} 59. Ka3 {[%emt 0:00:08]} Qb3# {[%emt 0:00:03]} 0-1

[Event "360 One Wealth GP-4 2024"]
[Site "Mumbai"]
[Date "2024.03.14"]
[Round "4.7"]
[White "Isaiah Chris Nazareth"]
[Black "Milind Parle"]
[Result "0-1"]
[ECO "C84"]
[WhiteElo "1698"]
[BlackElo "1642"]
[Annotator "NA RC"]
[PlyCount "108"]
[EventDate "2024.03.10"]
[EventCountry "IND"]
[SourceTitle "playchess.com"]
[Source "ChessBase"]
[SourceQuality "1"]
[TimeControl "5400+30"]

1. e4 {[%emt 0:00:03]} e5 {[%emt 0:00:02]} 2. Nf3 {[%emt 0:03:30]} Nc6 {[%emt 0:00:03]} 3. Bb5 {[%emt 0:00:13]} a6 {[%emt 0:00:04]} 4. Ba4 {[%emt 0:00:17]} Nf6 {[%emt 0:00:11]} 5. d3 {[%emt 0:00:27]} b5 {[%emt 0:00:10]} 6. Bb3 {[%emt 0:00:09]} Be7 {[%emt 0:00:06]} 7. O-O {[%emt 0:00:20]} d6 {[%emt 0:00:15]} 8. c3 {[%emt 0:00:12]} O-O {[%emt 0:00:14]} 9. h3 {[%emt 0:00:15]} Re8 {[%emt 0:02:07]} 10. Ng5 {[%emt 0:13:40]} Rf8 {[%emt 0:00:15]} 11. Nf3 {[%emt 0:00:06]} Re8 {[%emt 0:00:23]} 12. Re1 {[%emt 0:00:47]} h6 {[%emt 0:00:19]} 13. Nbd2 {[%emt 0:00:09]} Bf8 {[%emt 0:00:12]} 14. Nf1 {[%emt 0:03:16]} d5 {[%emt 0:07:12]} 15. exd5 {[%emt 0:09:40]} Nxd5 {[%emt 0:00:34]} 16. Ng3 {[%emt 0:00:37]} Nf6 {[%emt 0:04:23]} 17. a4 {[%emt 0:02:52]} Rb8 {[%emt 0:01:06]} 18. axb5 {[%emt 0:01:53]} axb5 {[%emt 0:00:16]} 19. Be3 {[%emt 0:00:24]} Bd6 {[%emt 0:08:50]} 20. Qc2 {[%emt 0:03:30]} Bd7 {[%emt 0:03:33]} 21. Ra2 {[%emt 0:03:40]} Ra8 {[%emt 0:03:10]} 22. Rea1 {[%emt 0:00:24]} Rxa2 {[%emt 0:00:03]} 23. Rxa2 {[%emt 0:00:02]} Ne7 {[%emt 0:05:58]} 24. Ne4 {[%emt 0:03:23]} Nxe4 {[%emt 0:00:29]} 25. dxe4 {[%emt 0:00:08]} Ng6 {[%emt 0:01:55]} 26. Ra1 {[%emt 0:07:48]} Qe7 {[%emt 0:01:32]} 27. Qd3 {[%emt 0:01:57]} Qf6 {[%emt 0:02:17]} 28. Ra7 {[%emt 0:02:07]} Nf4 {[%emt 0:06:34]} 29. Bxf4 {[%emt 0:00:14]} Qxf4 {[%emt 0:00:02]} 30. Rxc7 {[%emt 0:04:55]} Bxc7 {[%emt 0:05:24]} 31. Qxd7 {[%emt 0:00:08]} Ra8 {[%emt 0:00:23]} 32. Kf1 {[%emt 0:02:34]} Ra1+ {[%emt 0:03:14]} 33. Ke2 {[%emt 0:12:52]} Qxe4+ {[%emt 0:01:08]} 34. Kd2 {[%emt 0:00:13]} Qf4+ {[%emt 0:00:34]} 35. Kc2 {[%emt 0:00:43]} Rc1+ {[%emt 0:01:01]} 36. Kd3 {[%emt 0:00:04]} e4+ {[%emt 0:00:27]} 37. Ke2 {[%emt 0:00:19]} exf3+ {[%emt 0:00:13]} 38. gxf3 {[%emt 0:00:08]} Qe5+ {[%emt 0:01:27]} 39. Kd3 {[%emt 0:00:33]} Qd6+ {[%emt 0:00:19]} 40. Qxd6 {[%emt 0:00:14]} Bxd6 {[%emt 0:00:02]} 41. Ke4 {[%emt 0:00:41]} Kf8 {[%emt 0:00:46]} 42. Kd5 {[%emt 0:00:14]} Ke7 {[%emt 0:00:08]} 43. Kc6 {[%emt 0:00:03]} b4 {[%emt 0:00:43]} 44. c4 {[%emt 0:00:28]} f6 {[%emt 0:00:47]} 45. h4 {[%emt 0:00:26]} h5 {[%emt 0:01:01]} 46. Kb5 {[%emt 0:00:29]} g5 {[%emt 0:01:03]} 47. hxg5 {[%emt 0:00:52]} fxg5 {[%emt 0:00:02]} 48. f4 {[%emt 0:00:32]} gxf4 {[%emt 0:00:30]} 49. f3 {[%emt 0:00:15]} h4 {[%emt 0:00:06]} 50. c5 {[%emt 0:00:35]} Rxc5+ {[%emt 0:00:13]} 51. Ka4 {[%emt 0:00:07]} h3 {[%emt 0:00:18]} 52. Be6 {[%emt 0:00:28]} h2 {[%emt 0:00:15]} 53. Ba2 {[%emt 0:00:11]} h1=Q {[%emt 0:00:58]} 54. b3 {[%emt 0:00:15]} Rc2 {[%emt 0:00:35]} 0-1

[Event "360 One Wealth GP-4 2024"]
[Site "Mumbai"]
[Date "2024.03.14"]
[Round "4.8"]
[White "Sunil, Vaidya"]
[Black "Soni Atharv"]
[Result "0-1"]
[ECO "E65"]
[WhiteElo "1640"]
[BlackElo "1684"]
[Annotator "NA RC"]
[PlyCount "110"]
[EventDate "2024.03.10"]
[EventCountry "IND"]
[SourceTitle "playchess.com"]
[Source "ChessBase"]
[SourceQuality "1"]
[TimeControl "5400+30"]

1. Nf3 {[%emt 0:02:11]} Nf6 {[%emt 0:00:06]} 2. g3 {[%emt 0:01:01]} g6 {[%emt 0:00:06]} 3. Bg2 {[%emt 0:00:11]} Bg7 {[%emt 0:00:07]} 4. c4 {[%emt 0:00:45]} O-O {[%emt 0:00:07]} 5. Nc3 {[%emt 0:00:12]} d6 {[%emt 0:00:05]} 6. O-O {[%emt 0:00:12]} c5 {[%emt 0:04:40]} 7. d4 {[%emt 0:00:49]} Nc6 {[%emt 0:03:43]} 8. dxc5 {[%emt 0:03:08]} dxc5 {[%emt 0:00:07]} 9. Qxd8 {[%emt 0:00:16]} Rxd8 {[%emt 0:00:56]} 10. Be3 {[%emt 0:04:01]} Nd4 {[%emt 0:11:24]} 11. Rad1 {[%emt 0:01:18]} Ng4 {[%emt 0:02:38]} 12. Bxd4 {[%emt 0:00:48]} cxd4 {[%emt 0:00:14]} 13. h3 {[%emt 0:01:52]} Nh6 {[%emt 0:00:22]} 14. Nb5 {[%emt 0:03:42]} e5 {[%emt 0:01:42]} 15. Ng5 {[%emt 0:05:05]} Bd7 {[%emt 0:20:10]} 16. e3 {[%emt 0:06:11]} Bc6 {[%emt 0:12:19]} 17. exd4 {[%emt 0:01:25]} exd4 {[%emt 0:01:26]} 18. g4 {[%emt 0:04:43]} a6 {[%emt 0:01:53]} 19. Na3 {[%emt 0:02:40]} Re8 {[%emt 0:04:25]} 20. Rd2 {[%emt 0:02:10]} f5 {[%emt 0:00:57]} 21. Nf3 {[%emt 0:04:33]} fxg4 {[%emt 0:05:40]} 22. Nxd4 {[%emt 0:05:36]} Bxg2 {[%emt 0:00:15]} 23. Kxg2 {[%emt 0:00:15]} gxh3+ {[%emt 0:02:02]} 24. Kxh3 {[%emt 0:00:18]} Re4 {[%emt 0:00:26]} 25. Nac2 {[%emt 0:02:20]} Rd8 {[%emt 0:02:33]} 26. Rfd1 {[%emt 0:00:41]} Rg4 {[%emt 0:06:04]} 27. b3 {[%emt 0:02:46]} Rf8 {[%emt 0:01:34]} 28. f3 {[%emt 0:03:10]} Rg5 {[%emt 0:00:19]} 29. Rd3 {[%emt 0:07:36]} Be5 {[%emt 0:01:51]} 30. Ne2 {[%emt 0:03:44]} Rh5+ {[%emt 0:03:24]} 31. Kg2 {[%emt 0:00:23]} Rh2+ {[%emt 0:00:04]} 32. Kf1 {[%emt 0:00:45]} Ng4 {[%emt 0:01:24]} 33. Rd8 {[%emt 0:08:09]} Rf2+ {[%emt 0:01:03]} 34. Ke1 {[%emt 0:01:22]} R2xf3 {[%emt 0:00:14]} 35. R1d3 {[%emt 0:05:13]} Rf1+ {[%emt 0:01:54]} 36. Kd2 {[%emt 0:00:32]} h5 {[%emt 0:01:05]} 37. Ne3 {[%emt 0:02:14]} Nxe3 {[%emt 0:00:42]} 38. Rxf8+ {[%emt 0:02:23]} Rxf8 {[%emt 0:00:15]} 39. Kxe3 {[%emt 0:00:41]} Kg7 {[%emt 0:01:45]} 40. Ke4 {[%emt 0:00:47]} Bb8 {[%emt 0:01:18]} 41. Nd4 {[%emt 0:01:02]} Kh6 {[%emt 0:00:54]} 42. c5 {[%emt 0:01:17]} h4 {[%emt 0:00:28]} 43. b4 {[%emt 0:00:58]} g5 {[%emt 0:02:06]} 44. a4 {[%emt 0:00:57]} Rf4+ {[%emt 0:01:14]} 45. Kd5 {[%emt 0:00:54]} g4 {[%emt 0:00:32]} 46. b5 {[%emt 0:00:33]} axb5 {[%emt 0:00:45]} 47. axb5 {[%emt 0:00:04]} h3 {[%emt 0:01:52]} 48. Rd1 {[%emt 0:03:51]} h2 {[%emt 0:00:00]} 49. Ne6 {[%emt 0:01:21]} g3 {[%emt 0:00:15]} 50. Nxf4 {[%emt 0:03:32]} Bxf4 {[%emt 0:00:01]} 51. Ke4 {[%emt 0:00:29]} g2 {[%emt 0:00:01]} 52. Kxf4 {[%emt 0:00:38]} g1=Q {[%emt 0:00:05]} 53. Rd6+ {[%emt 0:00:24]} Kh5 {[%emt 0:00:25]} 54. Rd5+ {[%emt 0:00:37]} Kh4 {[%emt 0:00:01]} 55. Rd7 {[%emt 0:00:23]} Qg4+ {[%emt 0:00:02]} 0-1

[Event "360 One Wealth GP-4 2024"]
[Site "Mumbai"]
[Date "2024.03.14"]
[Round "4.9"]
[White "Ram Vishal Parab"]
[Black "Prabhakar Aariv"]
[Result "1-0"]
[ECO "B27"]
[WhiteElo "1807"]
[BlackElo "1509"]
[Annotator "NA RC"]
[PlyCount "89"]
[EventDate "2024.03.10"]
[EventCountry "IND"]
[SourceTitle "playchess.com"]
[Source "ChessBase"]
[SourceQuality "1"]
[TimeControl "5400+30"]

1. e4 {[%emt 0:00:02]} c5 {[%emt 0:00:05]} 2. Nf3 {[%emt 0:00:07]} g6 {[%emt 0:00:05]} 3. c3 {[%emt 0:00:04]} Bg7 {[%emt 0:00:10]} 4. d4 {[%emt 0:00:07]} cxd4 {[%emt 0:00:06]} 5. cxd4 {[%emt 0:00:05]} d5 {[%emt 0:00:08]} 6. e5 {[%emt 0:00:08]} Bg4 {[%emt 0:00:07]} 7. Bb5+ {[%emt 0:00:29]} Nc6 {[%emt 0:01:11]} 8. Nc3 {[%emt 0:04:11]} e6 {[%emt 0:00:24] has lost popularity (8...Nh6). B27: Sicilian: 2 Nf3, unusual Black 2nd moves.} 9. O-O {[%emt 0:01:34]} Nh6 {[%emt 0:02:35]} 10. h3 {[%emt 0:02:33]} Bxf3 {[%emt 0:00:43]} 11. Qxf3 {[%emt 0:00:02]} Nf5 {[%emt 0:00:36]} 12. Be3 {[%emt 0:03:03]} O-O {[%emt 0:00:54]} 13. Bxc6 {[%emt 0:01:13]} bxc6 {[%emt 0:00:02]} 14. Na4 {[%emt 0:11:06]} f6 {[%emt 0:11:32]} 15. exf6 {[%emt 0:04:27]} Bxf6 {[%emt 0:02:37]} 16. Qg4 {[%emt 0:01:12]} Qe8 $146 {[%emt 0:17:46]} ({Predecessor:} 16... Qe7 17. Rac1 Rac8 18. Nc5 e5 19. dxe5 Bxe5 20. Bg5 Qd6 21. Nd3 h5 22. Qa4 Bd4 {0-1 Ringeltaube,D (1718)-Reitz,P (2037) Wiesbaden op 30th 2018 (1)}) 17. Rae1 {[%emt 0:05:15]} h5 {[%emt 0:08:47]} 18. Qd1 {[%emt 0:01:46]} Rf7 {[%emt 0:00:44]} 19. Nc5 {[%emt 0:07:26]} Re7 {[%emt 0:04:47]} 20. f4 {[%emt 0:05:39]} Rb8 {[%emt 0:04:42]} 21. Qd2 {[%emt 0:07:02]} Nd6 {[%emt 0:04:56]} 22. b3 {[%emt 0:00:27]} Nb7 {[%emt 0:01:14]} 23. Na6 {[%emt 0:03:12]} Rc8 {[%emt 0:02:07]} 24. Qb4 {[%emt 0:02:47]} Qd8 {[%emt 0:03:26]} 25. Qd2 {[%emt 0:06:11]} (25. Nc5 $14) 25... Qd7 {[%emt 0:05:27]} 26. Qd3 {[%emt 0:02:33]} Qe8 {[%emt 0:11:56]} 27. Bd2 {[%emt 0:02:17]} Nd6 {[%emt 0:02:00]} 28. Bb4 {[%emt 0:02:11]} Nf5 {[%emt 0:01:18]} 29. Bc5 {[%emt 0:01:02]} Bh4 {[%emt 0:08:24]} 30. Re5 {[%emt 0:02:25]} Bf6 {[%emt 0:01:22]} 31. Re2 {[%emt 0:00:12]} Rd7 {[%emt 0:02:51]} 32. g4 {[%emt 0:01:07]} hxg4 {[%emt 0:02:14]} 33. hxg4 {[%emt 0:00:02]} Nd6 {[%emt 0:00:59]} 34. Bxd6 {[%emt 0:00:16]} Rxd6 {[%emt 0:00:01]} 35. f5 {[%emt 0:01:10]} gxf5 {[%emt 0:01:14]} 36. gxf5 {[%emt 0:00:12]} Qh5 {[%emt 0:00:23]} 37. Rh2 {[%emt 0:00:18]} Qf7 $18 {[%emt 0:00:33]} 38. Kh1 {[%emt 0:00:48]} Kf8 {[%emt 0:00:27]} 39. Nc5 {[%emt 0:00:33]} e5 {[%emt 0:00:30]} 40. Qg3 {[%emt 0:01:38]} Re8 {[%emt 0:00:30]} 41. Ne6+ {[%emt 0:00:09]} Rdxe6 {[%emt 0:00:27]} 42. fxe6 {[%emt 0:00:02]} Rxe6 {[%emt 0:00:35]} 43. dxe5 {[%emt 0:00:28]} Rxe5 {[%emt 0:00:33]} 44. Qf4 {[%emt 0:00:12]} Re6 {[%emt 0:00:22]} 45. Rh8+ {[%emt 0:00:10]} 1-0

[Event "360 One Wealth GP-4 2024"]
[Site "Mumbai"]
[Date "2024.03.14"]
[Round "4.10"]
[White "Palaash Suyog Mapara"]
[Black "Butala Krish"]
[Result "0-1"]
[ECO "C56"]
[WhiteElo "1521"]
[BlackElo "1659"]
[Annotator "NA RC"]
[PlyCount "108"]
[EventDate "2024.03.10"]
[EventCountry "IND"]
[SourceTitle "playchess.com"]
[Source "ChessBase"]
[SourceQuality "1"]
[TimeControl "5400+30"]

1. e4 {[%emt 0:00:02]} e5 {[%emt 0:00:16]} 2. Nf3 {[%emt 0:00:09]} Nc6 {[%emt 0:00:19]} 3. Bc4 {[%emt 0:00:06]} Nf6 {[%emt 0:00:23]} 4. d4 {[%emt 0:00:08]} exd4 {[%emt 0:00:31]} 5. O-O {[%emt 0:00:08]} d6 {[%emt 0:00:20]} 6. h3 {[%emt 0:05:23]} Ne5 {[%emt 0:01:27]} 7. Nxe5 {[%emt 0:01:56]} dxe5 {[%emt 0:01:28]} 8. Bd3 {[%emt 0:00:23]} Bd6 {[%emt 0:02:33]} 9. Nd2 {[%emt 0:01:08]} Be6 {[%emt 0:00:28]} 10. Re1 {[%emt 0:02:43]} Nd7 {[%emt 0:01:37]} 11. a3 {[%emt 0:03:21]} h5 {[%emt 0:10:58]} 12. Nf3 {[%emt 0:16:00]} f6 {[%emt 0:04:16]} 13. Nh4 {[%emt 0:01:40]} g5 {[%emt 0:00:48]} 14. Nf5 {[%emt 0:00:13]} Kf7 {[%emt 0:05:24]} 15. Be2 {[%emt 0:01:59]} Bxf5 {[%emt 0:00:06]} 16. exf5 {[%emt 0:00:13]} h4 {[%emt 0:00:06]} 17. Bg4 {[%emt 0:02:41]} Nb6 {[%emt 0:04:42]} 18. Qf3 {[%emt 0:02:27]} c6 {[%emt 0:00:36]} 19. Bh5+ {[%emt 0:01:44]} Kg7 {[%emt 0:00:08]} 20. Bg4 {[%emt 0:00:43]} Bc7 {[%emt 0:02:56]} 21. b3 {[%emt 0:04:04]} Qd6 {[%emt 0:04:22]} 22. g3 {[%emt 0:04:25]} hxg3 {[%emt 0:05:55]} 23. fxg3 {[%emt 0:01:25]} Qd5 {[%emt 0:00:48]} 24. Qxd5 {[%emt 0:00:24]} Nxd5 {[%emt 0:00:35]} 25. Bd2 {[%emt 0:02:24]} Rae8 {[%emt 0:01:34]} 26. Re4 {[%emt 0:01:34]} Nb6 {[%emt 0:02:32]} 27. Kg2 {[%emt 0:02:16]} Nc8 {[%emt 0:01:07]} 28. Rae1 {[%emt 0:04:20]} c5 {[%emt 0:00:42]} 29. b4 {[%emt 0:05:08]} c4 {[%emt 0:02:55]} 30. R4e2 {[%emt 0:07:52]} Nd6 {[%emt 0:00:48]} 31. Bf3 {[%emt 0:10:55]} Nxf5 {[%emt 0:05:32]} 32. Bxb7 {[%emt 0:00:15]} Nd6 {[%emt 0:00:40]} 33. Be4 {[%emt 0:01:17]} Nxe4 {[%emt 0:00:40]} 34. Rxe4 {[%emt 0:00:10]} f5 {[%emt 0:00:08]} 35. R4e2 {[%emt 0:00:19]} Kf6 {[%emt 0:00:15]} 36. g4 {[%emt 0:08:07]} f4 {[%emt 0:02:31]} 37. Re4 {[%emt 0:00:38]} Rh7 {[%emt 0:00:04]} 38. Rf1 {[%emt 0:00:10]} Reh8 {[%emt 0:00:10]} 39. Rf3 {[%emt 0:00:09]} Ke6 {[%emt 0:00:08]} 40. Re1 {[%emt 0:05:19]} Kd5 {[%emt 0:00:26]} 41. Rh1 {[%emt 0:01:16]} e4 {[%emt 0:00:20]} 42. Rff1 {[%emt 0:00:40]} f3+ {[%emt 0:00:05]} 43. Kf2 {[%emt 0:00:40]} Rxh3 {[%emt 0:01:30]} 44. Rxh3 {[%emt 0:00:08]} Rxh3 {[%emt 0:00:03]} 45. Bxg5 {[%emt 0:00:08]} Bg3+ {[%emt 0:00:03]} 46. Kg1 {[%emt 0:00:29]} Bh4 {[%emt 0:00:31]} 47. Bf4 {[%emt 0:00:25]} e3 {[%emt 0:00:11]} 48. Bb8 {[%emt 0:00:22]} e2 {[%emt 0:00:11]} 49. Rb1 {[%emt 0:00:12]} e1=Q+ {[%emt 0:00:14]} 50. Rxe1 {[%emt 0:00:09]} Bxe1 {[%emt 0:00:03]} 51. g5 {[%emt 0:00:15]} f2+ {[%emt 0:00:12]} 52. Kg2 {[%emt 0:00:09]} Rh1 {[%emt 0:00:08]} 53. Kxh1 {[%emt 0:00:04]} f1=Q+ {[%emt 0:00:10]} 54. Kh2 {[%emt 0:00:20]} Bf2 {[%emt 0:00:12]} 0-1

[Event "360 One Wealth GP-4 2024"]
[Site "Mumbai"]
[Date "2024.03.14"]
[Round "4.11"]
[White "Pawar Sohum"]
[Black "Shravan Balram"]
[Result "0-1"]
[ECO "B15"]
[WhiteElo "1657"]
[BlackElo "1488"]
[Annotator "NA RC"]
[PlyCount "136"]
[EventDate "2024.03.10"]
[EventCountry "IND"]
[SourceTitle "playchess.com"]
[Source "ChessBase"]
[SourceQuality "1"]
[TimeControl "5400+30"]

1. e4 {[%emt 0:10:54]} c6 {[%emt 0:00:04]} 2. d4 {[%emt 0:00:49]} d5 {[%emt 0:00:14]} 3. Nc3 {[%emt 0:00:06]} dxe4 {[%emt 0:01:24]} 4. Nxe4 {[%emt 0:00:02]} Nf6 {[%emt 0:02:26]} 5. Nxf6+ {[%emt 0:00:34]} exf6 {[%emt 0:00:06]} 6. c3 {[%emt 0:00:04]} Bf5 {[%emt 0:01:52]} 7. Bc4 {[%emt 0:00:32]} Bd6 {[%emt 0:02:25]} 8. Qf3 {[%emt 0:05:54]} Bg6 {[%emt 0:11:17]} 9. Ne2 {[%emt 0:01:07]} O-O {[%emt 0:07:18]} 10. O-O {[%emt 0:01:28]} Nd7 {[%emt 0:01:20]} 11. Nf4 {[%emt 0:00:56]} Bxf4 {[%emt 0:03:22]} 12. Bxf4 {[%emt 0:00:11]} Nb6 {[%emt 0:00:08]} 13. Bb3 {[%emt 0:00:37]} Re8 {[%emt 0:03:19]} 14. Rfe1 {[%emt 0:02:44]} Qd7 {[%emt 0:05:57]} 15. h4 {[%emt 0:07:32]} Nd5 {[%emt 0:05:44]} 16. Bd2 {[%emt 0:03:05]} Qf5 {[%emt 0:03:52]} 17. Qxf5 {[%emt 0:01:52]} Bxf5 {[%emt 0:00:10]} 18. f3 {[%emt 0:00:30]} Be6 {[%emt 0:05:18]} 19. c4 {[%emt 0:04:16]} Nb6 {[%emt 0:01:09]} 20. Rac1 {[%emt 0:00:02]} Rad8 {[%emt 0:01:35]} 21. Be3 {[%emt 0:00:26]} Bf5 {[%emt 0:03:25]} 22. g4 {[%emt 0:07:17]} Bd3 {[%emt 0:01:48]} 23. Kf2 {[%emt 0:05:51]} h6 {[%emt 0:09:08]} 24. a4 {[%emt 0:02:57]} Re7 {[%emt 0:07:56]} 25. a5 {[%emt 0:00:31]} Nd7 {[%emt 0:00:27]} 26. Rcd1 {[%emt 0:01:48]} Bh7 {[%emt 0:03:13]} 27. f4 {[%emt 0:05:48]} Nf8 {[%emt 0:03:37]} 28. f5 {[%emt 0:01:33]} h5 {[%emt 0:01:14]} 29. gxh5 {[%emt 0:05:51]} Bxf5 {[%emt 0:00:24]} 30. Rg1 {[%emt 0:00:45]} Re4 {[%emt 0:01:49]} 31. Bh6 {[%emt 0:04:03]} Bg4 {[%emt 0:01:32]} 32. Rde1 {[%emt 0:02:07]} Rdxd4 {[%emt 0:01:33]} 33. Be3 {[%emt 0:00:52]} Rd8 {[%emt 0:01:30]} 34. Bxa7 {[%emt 0:06:58]} Rd2+ {[%emt 0:00:16]} 35. Kg3 {[%emt 0:01:41]} Rd3+ {[%emt 0:00:13]} 36. Kf2 {[%emt 0:01:13]} Rf4+ {[%emt 0:00:09]} 37. Kg2 {[%emt 0:00:17]} Rxb3 {[%emt 0:00:07]} 38. Re8 {[%emt 0:00:17]} Bh3+ {[%emt 0:00:28]} 39. Kh2 {[%emt 0:00:44]} Bd7 {[%emt 0:00:13]} 40. Rd8 {[%emt 0:00:37]} Rxh4+ {[%emt 0:00:28]} 41. Kg2 {[%emt 0:00:00]} Rxb2+ 42. Kf3 {[%emt 0:00:18]} Rxh5 {[%emt 0:01:06]} 43. Rd1 {[%emt 0:01:49]} Rxa5 {[%emt 0:01:37]} 44. Bb8 {[%emt 0:00:43]} Ra3+ {[%emt 0:00:20]} 45. Ke4 {[%emt 0:00:27]} Re2+ {[%emt 0:01:11]} 46. Kd4 {[%emt 0:01:29]} Re8 {[%emt 0:00:59]} 47. Rxe8 {[%emt 0:00:49]} Bxe8 {[%emt 0:00:05]} 48. Rb1 {[%emt 0:00:04]} b5 {[%emt 0:00:30]} 49. cxb5 {[%emt 0:00:22]} cxb5 {[%emt 0:00:17]} 50. Kc5 {[%emt 0:00:17]} Nd7+ {[%emt 0:00:01]} 51. Kb4 {[%emt 0:00:07]} Ra4+ {[%emt 0:00:22]} 52. Kxb5 {[%emt 0:00:06]} Nxb8+ {[%emt 0:00:17]} 53. Kc5 {[%emt 0:00:14]} Na6+ {[%emt 0:00:43]} 54. Kd6 {[%emt 0:00:10]} Kf8 {[%emt 0:00:29]} 55. Rd1 {[%emt 0:00:08]} g5 {[%emt 0:01:36]} 56. Kd5 {[%emt 0:00:28]} g4 {[%emt 0:00:20]} 57. Rg1 {[%emt 0:00:14]} f5 {[%emt 0:00:19]} 58. Ke5 {[%emt 0:00:05]} Bd7 {[%emt 0:00:15]} 59. Kf6 {[%emt 0:00:00]} f4 {[%emt 0:00:17]} 60. Rh1 {[%emt 0:00:05]} Kg8 {[%emt 0:00:19]} 61. Ke7 {[%emt 0:00:13]} f3 {[%emt 0:00:19]} 62. Kxd7 {[%emt 0:00:09]} f2 {[%emt 0:00:18]} 63. Rf1 {[%emt 0:00:06]} g3 {[%emt 0:00:04]} 64. Kc6 {[%emt 0:00:09]} g2 {[%emt 0:00:17]} 65. Rxf2 {[%emt 0:00:10]} g1=Q {[%emt 0:00:14]} 66. Rb2 {[%emt 0:00:00]} Qc5+ {[%emt 0:00:00]} 67. Kb7 {[%emt 0:00:07]} Qc7+ {[%emt 0:00:05]} 68. Ka8 {[%emt 0:01:21]} Nc5# {[%emt 0:00:02]} 0-1